[Event "3rd Sharjah Challengers 2023"]
[Site "Sharjah"]
[Date "2023.05.19"]
[Round "3.9"]
[White "Haznedaroglu, Kivanc"]
[Black "Koniahli, Malek."]
[Result "1/2-1/2"]
[ECO "D12"]
[WhiteElo "2418"]
[BlackElo "2248"]
[Annotator "TA"]
[PlyCount "158"]
[EventDate "2023.05.16"]
[EventType "swiss"]
[EventCountry "UAE"]
[SourceTitle "playchess.com"]
[Source "ChessBase"]
[SourceQuality "1"]
[TimeControl "5400+30"]

{[%evp 11,158,26,27,23,31,0,16,8,12,15,15,8,43,33,33,27,28,30,38,21,44,35,32,43,35,22,23,26,16,13,41,39,128,132,135,129,121,128,124,130,256,260,229,167,184,175,172,150,172,177,187,187,164,121,187,156,156,162,162,165,155,153,160,156,160,158,174,163,276,226,309,185,185,184,183,176,176,176,307,307,307,162,162,162,161,147,204,204,204,204,204,204,204,204,204,204,204,204,204,204,204,204,204,204,204,204,204,204,204,204,204,97,204,0,204,204,204,0,204,204,204,204,204,204,580,204,204,90,90,90,90,45,45,45,45,45,45,45,45,8,8,8,13,13,24,45,45,0,79]} 1. d4 {[%emt 0:00:02]} d5 {[%emt 0:00:06]} 2. c4 {[%emt 0:00:06]} c6 {[%emt 0:00:08]} 3. Nf3 {[%emt 0:00:10]} Nf6 {[%emt 0:00:05]} 4. e3 {[%emt 0:00:49]} Bf5 {[%emt 0:00:49]} 5. Nc3 {[%emt 0:00:26]} e6 {[%emt 0:00:05]} 6. Nh4 {[%emt 0:04:46]} Bg6 {[%emt 0:00:16]} 7. Qb3 {[%emt 0:02:13] D12: Slav Defence: 3 Nf3 Nf6 4 e3 Bf5.} Qc7 {[%emt 0:02:48]} 8. Bd2 {[%emt 0:02:05]} Nbd7 {[%emt 0:03:44]} 9. Nxg6 {[%emt 0:02:35]} hxg6 {[%emt 0:00:09]} 10. g3 {[%emt 0:00:02]} Be7 {[%emt 0:10:38]} 11. Bg2 {[%emt 0:02:40][%cal Rc4d5]} dxc4 {[%emt 0:05:23]} 12. Qxc4 {[%emt 0:00:03]} e5 {[%emt 0:00:35] [#]} 13. O-O $146 {[%emt 0:06:06]} ({Predecessor:} 13. dxe5 Nxe5 14. Qe2 Rd8 15. O-O O-O 16. Rfd1 Nd3 17. Rab1 Qe5 18. Be1 Nxe1 19. Qxe1 Qe6 20. Rxd8 {½-½ Roussel Roozmon,T (2489)-Nguyen,H (2482) Budapest FS06 GM 2008 (4)}) 13... Nb6 {[%emt 0:03:23]} 14. Qb3 {[%emt 0:02:31]} exd4 {[%emt 0:04:21]} 15. exd4 {[%emt 0:00:06]} O-O {[%emt 0:24:12]} 16. a4 {[%emt 0:01:25][%cal Ba2a4,Ba4a5][%mdl 32]} Rfd8 {[%emt 0:01:36]} 17. a5 {[%emt 0:00:16] Strongly threatening Bf4.} Nbd5 {[%emt 0:00:09] Prevents Bf4.} 18. a6 {[%emt 0:00:29]} Rab8 {[%emt 0:01:00]} 19. Nxd5 {[%emt 0:22:08]} Nxd5 {[%emt 0:05:33]} 20. Qc4 {[%emt 0:00:48]} bxa6 {[%emt 0:07:49]} (20... b5 $5 {[%cal Rb5c4]} 21. Qc2 Qd7 $11) 21. Rxa6 {[%emt 0:01:35] Bxd5 is the strong threat.} Rxb2 {[%emt 0:13:08]} (21... Nb4 $14) 22. Rxc6 $16 {[%emt 0:09:56]} Qd7 {[%emt 0:01:45]} 23. Ba5 {[%emt 0:00:50] This pair of bishops is nice.} Nb6 {[%emt 0:00:20]} 24. Qc1 {[%emt 0:06:10]} (24. Rxg6 $2 Nxc4 25. Bxd8 Bxd8 $19) 24... Rb5 {[%emt 0:06:22]} 25. Rc7 {[%emt 0:00:51]} Rxa5 {[%emt 0:04:39]} (25... Qd6 $16 {might work better.} 26. Rxa7 Rc8) 26. Rxd7 $18 {[%emt 0:00:06]} Rxd7 {[%emt 0:00:01]} 27. Rd1 {[%emt 0:02:36]} Bf6 {[%emt 0:00:10]} 28. Qe3 {[%emt 0:00:26]} Rd8 {[%emt 0:00:20]} 29. h4 {[%emt 0:00:32]} Nd5 {[%emt 0:01:20]} 30. Qb3 {[%emt 0:00:11]} Ne7 {[%emt 0:01:37]} 31. Qb7 {[%emt 0:00:19] Qc7 would be deadly.} Nf5 {[%emt 0:00:43]} 32. d5 {[%emt 0:02:11]} Ra2 {[%emt 0:00:55] [#]} (32... Bd4 $16) 33. d6 $1 {[%emt 0:04:05][%mdl 512]} Nxd6 {[%emt 0:02:18]} 34. Qc7 {[%emt 0:00:02]} Ra6 {[%emt 0:00:23]} 35. Bf1 {[%emt 0:01:03]} Rb6 {[%emt 0:00:09]} 36. Qxa7 {[%emt 0:00:15] White is more active.} Rc6 {[%emt 0:00:26]} 37. Bg2 {[%emt 0:01:39]} Rcc8 {[%emt 0:00:11]} 38. Bd5 {[%emt 0:00:08]} Kh7 {[%emt 0:00:17]} 39. Kg2 $36 {[%emt 0:00:48][%mdl 2048] Black is under strong pressure.} ({Inferior is} 39. Bxf7 Nxf7 40. Rxd8 Nxd8 $17) 39... Rf8 {[%emt 0:00:25]} (39... Kg8 $142 40. Qa6 Ne8) 40. Rd3 {[%emt 0:04:20]} Rce8 {[%emt 0:01:03]} 41. Qc7 {[%emt 0:01:39]} (41. g4 $142) 41... Nf5 {[%emt 0:00:06]} 42. Qc4 {[%emt 0:03:12]} Re7 {[%emt 0:01:27] [#]} 43. h5 $1 {[%emt 0:01:07][%mdl 512]} gxh5 {[%emt 0:00:33]} 44. Be4 {[%emt 0:00:10]} g6 {[%emt 0:00:31]} (44... Rxe4 {was called for.} 45. Qxe4 g6) 45. Bxf5 {[%emt 0:00:53]} gxf5 {[%emt 0:00:01]} 46. Qc5 {[%emt 0:01:44]} (46. Rd5 $142) 46... Kg7 {[%emt 0:00:10]} 47. Qxf5 {[%emt 0:00:21]} Re5 {[%emt 0:00:26]} 48. Qf4 {[%emt 0:00:08] Hoping for Rf3.} Rg5 {[%emt 0:00:15]} (48... Rfe8 $16 49. Rd7 R5e7) 49. Rd7 {[%emt 0:01:13]} Rg6 {[%emt 0:00:17]} 50. Kh3 {[%emt 0:00:10]} Rg4 {[%emt 0:00:38]} 51. Qf3 {[%emt 0:00:44]} Rg6 {[%emt 0:00:07]} 52. Qd5 {[%emt 0:01:33]} (52. Qxh5 $2 {is the wrong capture.} Rh6 $19) 52... Rg5 {[%emt 0:00:13]} 53. Qc4 {[%emt 0:00:14]} Rg4 {[%emt 0:00:17]} 54. f4 {[%emt 0:01:06]} Rg6 {[%emt 0:00:09]} 55. Qd5 {[%emt 0:00:13]} Rh6 {[%emt 0:01:37]} 56. Kg2 {[%emt 0:00:52]} Rh7 {[%emt 0:00:26]} 57. Qf5 {[%emt 0:00:13]} Rh6 {[%emt 0:00:14]} 58. Kf3 {[%emt 0:00:25]} Re8 {[%emt 0:01:08]} 59. Rb7 {[%emt 0:01:47]} Rf8 {[%emt 0:00:46]} 60. Qd5 {[%emt 0:00:23]} Rh7 {[%emt 0:00:13]} 61. Ke4 {[%emt 0:01:13]} (61. Rb6 $18 {[%cal Ob6f6] White threatens Rxf6! and mate.} Rhh8 62. Rb7) 61... Rh6 {[%emt 0:00:21]} (61... h4 $16) 62. Kf3 {[%emt 0:04:55]} Rh7 $1 {[%emt 0:00:14]} 63. Rb6 {[%emt 0:01:29][%cal Ob6f6] Threatening mate with Rxf6!} Rh6 {[%emt 0:00:14]} 64. Rb7 {[%emt 0:03:19]} Rh7 $1 {[%emt 0:00:05]} 65. Rb1 {[%emt 0:00:05]} Rh6 {[%emt 0:00:14]} 66. Rh1 {[%emt 0:00:12]} Rfh8 {[%emt 0:00:17]} 67. Qf5 {[%emt 0:00:12]} R6h7 $2 {[%emt 0:00:41]} (67... Be7 68. Rh3 Bd8) 68. Rg1 $2 {[%emt 0:01:33]} (68. g4 {[%cal Rg4h5]} Rf8 69. g5) 68... Rh6 {[%emt 0:00:25]} 69. g4 {[%emt 0:00:35]} (69. Rb1 $18 {and White stays clearly on top.}) 69... hxg4+ $16 {[%emt 0:00:18]} 70. Rxg4+ {[%emt 0:00:01]} Rg6 {[%emt 0:00:06]} 71. Rxg6+ {[%emt 0:00:03]} fxg6 {[%emt 0:00:04][%mdl 4096] Endgame KQ-KRB} 72. Qd7+ {[%emt 0:00:04]} Kg8 {[%emt 0:01:42]} 73. Qd5+ {[%emt 0:02:22]} Kg7 {[%emt 0:00:04]} 74. Qb7+ {[%emt 0:00:06]} Kg8 {[%emt 0:00:03]} 75. Ke4 {[%emt 0:00:06]} Rh5 {[%emt 0:00:04]} 76. Qc8+ {[%emt 0:00:24]} Kg7 {[%emt 0:00:01]} 77. Qd7+ {[%emt 0:00:06]} Kg8 {[%emt 0:00:04]} 78. Qe6+ {[%emt 0:00:06]} Kg7 {[%emt 0:00:01]} 79. Qd7+ {[%emt 0:00:06]} Kg8 $1 {White really could win this.   Weighted Error Value: White=0.11 (very precise) /Black=0.15 (very precise)} 1/2-1/2

[Event "3rd Sharjah Challengers 2023"]
[Site "Sharjah"]
[Date "2023.05.20"]
[Round "4.1"]
[White "Sivuk, Vitaly"]
[Black "Lim, Zhuo Ren"]
[Result "1-0"]
[ECO "D27"]
[WhiteElo "2489"]
[BlackElo "2294"]
[Annotator "TA"]
[PlyCount "59"]
[EventDate "2023.05.16"]
[EventType "swiss"]
[EventCountry "UAE"]
[SourceTitle "playchess.com"]
[Source "ChessBase"]
[SourceQuality "1"]
[TimeControl "5400+30"]

{[%evp 11,59,21,28,17,53,48,39,0,22,13,28,19,41,58,55,41,53,4,47,8,35,22,22,0,3,14,0,0,29,28,60,34,22,47,91,76,81,80,588,583,570,579,591,620,625,624,608,583,879,862]} 1. d4 {[%emt 1:31:00]} d5 {[%emt 1:31:00]} 2. Nf3 {[%emt 0:00:30]} Nf6 {[%emt 0:00:30]} 3. c4 {[%emt 0:00:30]} dxc4 {[%emt 0:00:30]} 4. e3 {[%emt 0:00:30][%cal Be2e3,Be3e4,Be4e5][%mdl 32]} e6 {[%emt 0:00:30]} 5. Bxc4 {[%emt 0:00:30]} c5 6. O-O {[%emt 0:00:30]} a6 {[%emt 0:01:00]} 7. Re1 {[%emt 0:00:30] D27: Queen's Gambit Accepted: Classical main line: 7 e4!? and 7 a4.} Nbd7 {[%emt 0:00:30]} 8. e4 {[%emt 0:00:30]} b5 {[%emt 0:00:30]} 9. Bf1 {[%emt 0:00:30] White is slightly better.} (9. Bd5 $5 {[%cal Rd5a8]} Nxd5 10. exd5 $11) 9... cxd4 {[%emt 0:00:30] [#]} 10. Nxd4 $146 {[%emt 0:00:30]} ({Predecessor:} 10. e5 Nd5 11. Nxd4 Bc5 12. Nc3 Bb7 13. Ne4 Be7 14. Qg4 Nxe5 15. Qxg7 Ng6 16. Ng5 Bxg5 17. Nxe6 fxe6 18. Rxe6+ {1-0 Martinovic,S (2548)-Afanasiev,N (2522) FIDE World Cup Europe Swiss playoff rapid 2021 (9)}) 10... Bc5 {[%emt 0:00:30]} 11. Nb3 {[%emt 0:00:30] e5 is the strong threat.} Bb6 {[%emt 0:00:30]} 12. e5 {[%emt 0:00:30]} Nd5 {[%emt 0:00:30]} 13. Qg4 {[%emt 0:00:30]} Kf8 {[%emt 0:00:30]} 14. Nc3 {[%emt 0:00:30]} (14. Qg3 $14) 14... Bb7 {[%emt 0:00:30]} (14... h5 $5 {[%cal Rh5g4]} 15. Qg5 Qxg5 16. Bxg5 Nxc3 17. bxc3 h4 $11) 15. Bg5 {[%emt 0:00:30]} (15. h4 {simplifies} h5 16. Qg3 Qb8 17. Nxd5 Bxd5 18. Bf4) 15... Qb8 {[%emt 0:00:30]} (15... h5 {simplifies} 16. Bxd8 hxg4 17. Bxb6 N5xb6 18. Na5 Rb8) 16. Nxd5 {[%emt 0:00:30][%mdl 64] [#] Remove Defender} (16. Qg3 {simplifies} h6 17. Nxd5 Bxd5 18. Be3) 16... Bxd5 {[%emt 0:00:30]} 17. Rac1 {[%emt 0:00:30]} h6 {[%emt 0:00:30]} 18. Qb4+ {[%emt 0:00:30]} Kg8 {[%emt 0:00:30]} 19. Be7 {[%emt 0:00:30][%cal Bg5e7,Be7d6,Bd6c7][%mdl 32]} g6 {[%emt 0:00:30] Black is weak on the dark squares} (19... Nxe5 $2 20. Bd6 Qa7 21. Rxe5 $18) 20. Bd6 $36 {[%emt 0:00:30][%mdl 2048] White is pushing.} Qa7 {[%emt 0:00:30]} 21. Rc2 {[%emt 0:00:30]} Kg7 {[%emt 0:00:30]} 22. Rec1 {[%emt 0:00:30][%cal Oc2c7] [#] And now Rc7! would win.} Bb7 {[%emt 0:00:30]} 23. Bc7 {[%emt 0:00:30] Black must now prevent Qe7. White is more active.} Rhe8 {[%emt 0:00:30] Dodges Qe7} 24. Qd6 {[%emt 0:00:30]} Bc8 {[%emt 0:00:30][%mdl 8192] A mistake that costs the game.} (24... Red8 $16 {keeps some hope.}) 25. g3 $18 {[%emt 0:00:30] White is clearly winning.} Bxc7 {[%emt 0:00:30]} 26. Rxc7 {[%emt 0:00:30]} (26. Qxc7 Qxc7 27. Rxc7 Nxe5 $11) 26... Qb8 {[%emt 0:00:30]} 27. Bg2 {[%emt 0:00:30]} ({Not} 27. Rxd7 Bxd7 28. Qxd7 Rd8 $16) 27... Ra7 {[%emt 0:00:30]} 28. Rxa7 {[%emt 0:00:30]} Qxa7 {[%emt 0:00:30]} 29. Rc7 {[%emt 0:00:30]} Qb8 {[%emt 0:00:30]} 30. Bc6 {[%emt 0:00:30] Weighted Error Value: White=0.09 (flawless) /Black=0.45} ({Worse is} 30. Rxd7 Bxd7 31. Qxd7 Rd8 $15) 1-0

[Event "3rd Sharjah Challengers 2023"]
[Site "Sharjah"]
[Date "2023.05.20"]
[Round "4.2"]
[White "Bai, Adelard"]
[Black "Fawzy, Adham"]
[Result "1/2-1/2"]
[ECO "E65"]
[WhiteElo "2409"]
[BlackElo "2495"]
[Annotator "TA"]
[PlyCount "90"]
[EventDate "2023.05.16"]
[EventType "swiss"]
[EventCountry "UAE"]
[SourceTitle "playchess.com"]
[Source "ChessBase"]
[SourceQuality "1"]
[TimeControl "5400+30"]

{[%evp 20,90,11,14,4,1,8,22,12,35,30,0,5,6,0,1,7,10,19,0,0,0,8,17,20,0,7,4,6,6,4,0,0,16,16,0,0,9,43,61,72,76,88,83,103,96,98,34,29,0,0,0,0,0,53,0,0,0,0,-109,-109,-102,-121,-112,-122,-122,0,0,0,0,0,0,0]} 1. d4 {[%emt 0:00:04]} Nf6 {[%emt 0:00:12]} 2. c4 {[%emt 0:00:37]} g6 {[%emt 0:00:25]} 3. g3 {[%emt 0:00:42]} Bg7 {[%emt 0:00:18]} 4. Bg2 {[%emt 0:00:16]} d6 {[%emt 0:00:49][%cal Bd7d6,Bd6c5][%mdl 32]} 5. Nf3 {[%emt 0:01:37]} O-O {[%emt 0:01:13]} 6. O-O {[%emt 0:00:15]} c5 {[%emt 0:00:03]} 7. Nc3 {[%emt 0:00:17]} Nc6 {[%emt 0:00:18][%cal Bb8c6,Bc6d4,Bd4c2][%mdl 32]} 8. dxc5 {[%emt 0:00:35]} dxc5 {[%emt 0:00:20]} 9. Be3 {[%emt 0:00:27]} Be6 {[%emt 0:00:02]} 10. Qa4 {[%emt 0:02:20]} Nd4 {[%emt 0:00:14]} 11. Rad1 {[%emt 0:00:31][%cal Rf3d4]} Bd7 {[%emt 0:00:50] E65: King's Indian: Fianchetto: 6...c5 7 0-0 without d5 by White.} 12. Qa3 {[%emt 0:00:10]} Nc2 {[%emt 0:00:03]} 13. Qxc5 {[%emt 0:00:10]} b6 $1 {[%emt 0:00:06]} 14. Qg5 {[%emt 0:07:39]} h6 $1 {[%emt 0:00:35]} 15. Qf4 {[%emt 0:05:25]} (15. Qh4 $5 {[%cal Re3h6]} Nxe3 16. fxe3 $14) 15... g5 $1 {[%emt 0:00:24]} 16. Qe5 {[%emt 0:01:44] Hoping for Nd4.} Rc8 {[%emt 0:02:39]} 17. Nd5 {[%emt 0:09:49]} Nxd5 {[%emt 0:02:38]} 18. Qxd5 {[%emt 0:00:51]} Bc6 {[%emt 0:00:08] [#]} 19. Qf5 $146 {[%emt 0:08:41]} ({Predecessor:} 19. Qxd8 Rfxd8 20. b3 e6 21. g4 f5 22. h3 Be4 23. gxf5 exf5 24. Nh2 Kf7 25. Bc1 {1-0 Banusz,T (2600)-Schroeder,J (2564) Bundesliga 2122 2022 (9.2)}) 19... Nxe3 {[%emt 0:00:05]} 20. fxe3 {[%emt 0:00:05]} (20. Rxd8 $2 {perishes.} Nxf5 21. Rxc8 Rxc8 $19) 20... Qc7 {[%emt 0:01:10]} 21. b3 {[%emt 0:04:32]} e6 {[%emt 0:02:12]} 22. Qc2 {[%emt 0:02:08]} Ba8 {[%emt 0:17:40] A strong pair of Bishops.} 23. Nd4 {[%emt 0:20:06]} Bxg2 {[%emt 0:05:59]} 24. Kxg2 {[%emt 0:00:06]} b5 {[%emt 0:00:11][%cal Rb5c4]} 25. Rc1 {[%emt 0:02:16]} (25. Nxb5 $2 {loses.} Qc6+ 26. Kf2 Qxb5 $19) 25... Qb7+ {[%emt 0:02:33]} 26. Kg1 {[%emt 0:00:32]} bxc4 {[%emt 0:00:02]} 27. bxc4 {[%emt 0:00:13]} Rfd8 {[%emt 0:01:59]} 28. Rfd1 {[%emt 0:01:18]} Qb4 {[%emt 0:03:34]} 29. Rd3 {[%emt 0:03:42][%cal Od4c6]} Bf6 {[%emt 0:07:53]} 30. Nb3 {[%emt 0:04:55]} Kg7 {[%emt 0:17:53]} 31. c5 {[%emt 0:01:15]} Qe4 {[%emt 0:11:44]} 32. Qc4 {[%emt 0:02:40]} Qe5 {[%emt 0:00:01]} 33. Nd4 {[%emt 0:02:35]} ({White should try} 33. c6 $16) 33... g4 $1 $14 {[%emt 0:01:45]} 34. Nb3 {[%emt 0:06:02]} (34. c6 $5 {[%cal Rc6c7]} Bg5 35. Rcc3 $14) 34... Rxd3 {[%emt 0:21:32]} 35. Qxd3 Rd8 $1 {[%emt 0:00:00][%cal Bc8d8,Bd8d5,Bd5c5][%mdl 32] Against c6} 36. Nd4 {[%emt 0:00:19]} Bg5 {[%emt 0:00:00]} (36... Rd5 $1 $11) 37. Rc3 {[%emt 0:01:14]} ({White should play} 37. Kf2 $1 $14) 37... Rd5 $11 {[%emt 0:00:00]} 38. c6 {[%emt 0:01:21] Threatens to win with c7.} Bd8 {[%emt 0:00:00]} 39. Qc4 {[%emt 0:03:16]} (39. Rc4 $11 {keeps the balance.}) 39... Bc7 $1 $17 {[%emt 0:00:00]} 40. Rd3 {[%emt 0:03:44] [#]} Rc5 $1 {[%emt 0:00:00]} 41. Nxe6+ {[%emt 0:00:08][%mdl 64] Discovered Attack} fxe6 {[%emt 0:00:00]} 42. Qxg4+ {[%emt 0:00:15] [#]} Kh8 {[%emt 0:00:00]} (42... Kf8 $1 $17 {...Qa1+ would be deadly.} 43. e4 (43. Rd7 Rc1+ 44. Kg2 Qf6 $17) 43... Rxc6) 43. Qg6 $11 {[%emt 0:00:51] Strongly threatening Qe8+. The board is on fire. The position is equal.} Rd5 $1 {[%emt 0:00:00]} 44. Qe8+ {[%emt 0:04:02]} Kg7 {[%emt 0:00:51]} 45. Qe7+ {[%emt 0:00:04]} Kg6 {[%emt 0:00:46] Weighted Error Value: White=0.14 (very precise) /Black=0.07 (flawless)} 1/2-1/2

[Event "3rd Sharjah Challengers 2023"]
[Site "Sharjah"]
[Date "2023.05.20"]
[Round "4.3"]
[White "Rios, Cristhian Camilo"]
[Black "Mammadova, Gulnar"]
[Result "1/2-1/2"]
[ECO "A14"]
[WhiteElo "2469"]
[BlackElo "2349"]
[Annotator "TA"]
[PlyCount "35"]
[EventDate "2023.05.16"]
[EventType "swiss"]
[EventCountry "UAE"]
[SourceTitle "playchess.com"]
[Source "ChessBase"]
[SourceQuality "1"]
[TimeControl "5400+30"]

{[%evp 12,35,27,-5,1,0,-5,0,0,0,0,-8,-6,-23,21,15,7,0,4,5,6,5,28,5,6,-6]} 1. Nf3 {[%emt 0:00:03]} Nf6 {[%emt 0:00:26]} 2. g3 {[%emt 0:00:18]} d5 {[%emt 0:00:20]} 3. Bg2 {[%emt 0:00:17]} e6 {[%emt 0:00:12]} 4. O-O {[%emt 0:00:40]} Be7 {[%emt 0:00:26]} 5. c4 {[%emt 0:00:29]} O-O {[%emt 0:00:34]} 6. b3 {[%emt 0:01:44]} c5 {[%emt 0:00:38]} 7. Bb2 {[%emt 0:00:49] 7.cxd5 is more fashionable.} d4 {[%emt 0:00:52] [#] A14: English Opening: 1...e6 with b3 by White.} 8. b4 $1 {[%emt 0:01:17]} Re8 {[%emt 0:00:50]} 9. d3 {[%emt 0:02:04]} Bf8 {[%emt 0:01:32]} 10. bxc5 {[%emt 0:01:18]} Bxc5 {[%emt 0:02:55]} 11. Nbd2 {[%emt 0:00:59]} e5 $1 {[%emt 0:01:07]} 12. Nb3 {[%emt 0:04:06]} Nbd7 {[%emt 0:06:23]} 13. Nxc5 {[%emt 0:05:29]} Nxc5 {[%emt 0:00:08]} 14. Ba3 {[%emt 0:02:48]} Qa5 {[%emt 0:04:43] [#]} 15. Bxc5 $146 {[%emt 0:03:04]} ({Predecessor:} 15. Qc1 Rb8 16. Rb1 a6 17. Bb4 Qc7 18. Qa3 Nfd7 19. e3 dxe3 20. fxe3 b6 21. Ng5 Rf8 22. d4 a5 23. Bxc5 bxc5 24. Rxb8 Nxb8 25. Bd5 Bb7 26. Bxf7+ Kh8 27. Ne6 {1-0 Fromm,M (2014)-Mauser,T (1860) Mecklenburg VP-ch MT 2018 (2.5)}) 15... Qxc5 {[%emt 0:00:19]} 16. Nd2 {[%emt 0:02:40]} Rb8 {[%emt 0:02:39]} 17. Rb1 {[%emt 0:01:25]} b6 {[%emt 0:02:19]} 18. Qa4 {[%emt 0:17:38] Not much happened in this game.   Weighted Error Value: White=0.06 (flawless) /Black=0.07 (flawless)} 1/2-1/2

[Event "3rd Sharjah Challengers 2023"]
[Site "Sharjah"]
[Date "2023.05.20"]
[Round "4.4"]
[White "Tulendinov, Dinmukhammed"]
[Black "Ohanyan, Emin"]
[Result "0-1"]
[ECO "B23"]
[WhiteElo "2164"]
[BlackElo "2444"]
[Annotator "TA"]
[PlyCount "50"]
[EventDate "2023.05.16"]
[EventType "swiss"]
[EventCountry "UAE"]
[SourceTitle "playchess.com"]
[Source "ChessBase"]
[SourceQuality "1"]
[TimeControl "5400+30"]

{[%evp 9,50,-14,-14,-14,-15,-17,-15,-13,-29,-23,7,-14,-1,-19,-31,-46,-42,-67,0,-50,85,81,66,15,10,0,18,-141,-139,-368,-366,-369,-371,-513,-410,-530,-529,-820,-815,-896,-922,-889,-683]} 1. e4 {[%emt 1:31:00]} c5 {[%emt 1:31:00]} 2. Nc3 {[%emt 0:00:30]} e6 3. Nge2 {[%emt 0:00:30]} Nf6 {[%emt 0:01:00][%cal Bg8f6,Bf6d7,Bd7b6,Bb6a4][%mdl 32]} 4. g3 {[%emt 0:00:30]} b5 {[%emt 0:00:30][%cal Bb7b5,Bb5b4][%mdl 32]} 5. Bg2 {[%emt 0:00:30]} Bb7 $1 {[%emt 0:00:30]} 6. d3 {[%emt 0:00:30] B23: Closed Sicilian: Lines without g3.} b4 {[%emt 0:00:30]} 7. Na4 {[%emt 0:00:30]} d5 {[%emt 0:00:30][%cal Rd5e4] [#]} 8. e5 $146 {[%emt 0:00:30] The position is equal.} ({Predecessor:} 8. f3 Nbd7 9. b3 h5 10. h3 Bd6 11. c4 Qc7 12. O-O Bxg3 13. Nxg3 Qxg3 14. Be3 {0-1 Helin,M (1905)-Aagaard,J (2506) Politiken Cup 34th 2012 (1)}) 8... Nfd7 {[%emt 0:00:30]} 9. f4 {[%emt 0:00:30]} Be7 {[%emt 0:00:30]} 10. O-O {[%emt 0:00:30]} O-O {[%emt 0:00:30]} (10... Nb6 $5 {[%cal Rb6a4]} 11. c3 bxc3 $11) 11. c4 {[%emt 0:00:30]} (11. a3 {simplifies} a5 12. c4 Nb6 13. Nxb6 Qxb6 14. cxd5 exd5 15. axb4 axb4 16. Rxa8 Bxa8 17. Be3) 11... Nb6 {[%emt 0:00:30]} 12. f5 {[%emt 0:00:30]} Nxa4 {[%emt 0:00:30]} (12... N8d7 {simplifies} 13. fxe6 fxe6 14. Rxf8+ Bxf8 15. Nxb6 axb6 16. Nf4 Nxe5 17. Nxe6 Qd7) 13. f6 {[%emt 0:00:30]} Nb6 {[%emt 0:00:30][%cal Rg7f6]} 14. Bg5 {[%emt 0:00:30]} (14. fxe7 Qxe7 15. Nf4 Nc6 16. cxd5 Nxd5 17. Nxd5 exd5 $17) 14... gxf6 {[%emt 0:00:30]} (14... Nc6 $1 $15 {stays ahead.} 15. fxe7 Nxe7) 15. exf6 $16 {[%emt 0:00:30]} Bd6 {[%emt 0:00:30] [#] ...N8d7 is the strong threat.} 16. Nf4 {[%emt 0:00:30]} (16. Nd4 $1 $14 N8d7 17. Nxe6) 16... Kh8 $1 $11 {[%emt 0:00:30] And now ...Be5 would win.} 17. Qh5 $1 {[%emt 0:00:30][%cal Of4e6] aiming for Nxe6!} N8d7 {[%emt 0:00:30][%cal Bb8d7,Bd7f8,Bf8g6][%mdl 32] ...Be5 would be deadly.} 18. cxd5 $2 {[%emt 0:00:30]} (18. Rae1 $1 $11) 18... Nxd5 $17 {[%emt 0:00:30]} (18... Nxf6 $2 19. Qh4 Be5 20. Be4 (20. Nh5 Nbxd5 21. Bxd5 Bd4+ 22. Rf2 Nxd5 $16) 20... Nxe4 21. Bxd8 Raxd8 22. dxe4 $18) 19. Qh6 $2 {[%emt 0:00:30] This move loses the game for White.} (19. Nxd5 $17 {was necessary.} exd5 20. Bh6 Nxf6 21. Qf5) 19... Rg8 $19 {[%emt 0:00:30]} ({Much less strong is} 19... N7xf6 20. Bxd5 Be7 21. Bxb7 $18) 20. Be4 {[%emt 0:00:30][%csl Ge4][%cal Rh6h7] [#]} Nf8 {[%emt 0:00:30]} ({Weaker is} 20... N7xf6 21. Nxd5 Rxg5 22. Nxf6 Bxe4 23. Qxg5 $14 (23. dxe4 Rg7 $15)) 21. Nh5 {[%emt 0:00:30][%cal Oh6g7]} Ng6 {[%emt 0:00:30]} 22. Ng7 {[%emt 0:00:30]} Be5 {[%emt 0:00:30] Black is clearly winning.} 23. Nxe6 {[%emt 0:00:30]} Qb6 {[%emt 0:00:30]} 24. Ng7 {[%emt 0:00:30]} c4+ {[%emt 0:00:30]} 25. Rf2 {[%emt 0:00:30]} Nxf6 {[%emt 0:00:30] Weighted Error Value: White=0.78/Black=0.19 (very precise)} 0-1